bitfinex/quotes_ETHUSD_20250216
["timestamp","ask_amount","ask_price","bid_price","bid_amount"]
[1739743411246,8.71407431,2688.0,2687.6,3.72067]
[1739743411476,8.02541094,2688.0,2687.6,3.72067]
[1739743413179,9.88554094,2688.0,2687.6,3.72067]
[1739743413498,9.88554094,2688.0,2687.5,3.72091]
[1739743413647,0.756,2687.8,2687.4,7.44195]
[1739743414000,0.756,2687.8,2687.5,3.72088]
[1739743414486,3.60484009,2687.8,2687.3,3.72113]
[1739743415003,8.18884009,2687.8,2687.3,3.72113]
[1739743415149,0.756,2687.7,2687.3,3.72113]
[1739743415651,5.34,2687.6,2687.3,3.72113]
[1739743417167,0.756,2687.5,2687.3,3.72113]
[1739743417372,6.096,2687.5,2687.3,3.72113]
[1739743423886,6.7056,2687.5,2687.3,3.72113]
[1739743424198,5.34,2687.4,2687.0,3.72155]
[1739743424378,6.1207,2687.4,2687.0,3.72155]
[1739743424686,6.3887,2687.4,2687.0,3.72154]
[1739743424849,6.3887,2687.4,2687.1,3.72141]
[1739743425056,7.08853,2687.4,2687.1,3.72141]
[1739743427089,7.08853,2687.4,2687.0,3.72162]
[1739743429698,0.7807,2687.3,2686.9,3.72174]
[1739743431503,0.7807,2687.1,2686.5,7.44447]
[1739743431681,5.95207,2687.0,2686.5,7.44444]
[1739743432066,5.95207,2687.0,2686.6,3.72215]
[1739743432481,5.95207,2687.0,2686.7,3.72197]
[1739743432896,6.22007,2687.0,2686.7,3.72197]
[1739743434984,6.22007,2687.0,2686.5,3.72225]
[1739743435185,0.700077,2686.9,2686.6,3.72216]
[1739743436731,5.34,2686.8,2686.6,3.72216]
[1739743437070,5.34,2686.8,2686.7,3.72203]
[1739743442716,6.1147,2686.8,2686.7,3.72203]
[1739743443015,6.1147,2686.8,2686.6,3.72216]
[1739743443819,6.8229777,2686.8,2686.6,3.71676396]
[1739743445721,6.8229777,2686.8,2686.6,3.72215]
[1739743446099,6.8229777,2686.8,2686.7,3.72203]
[1739743446533,6.8229777,2686.8,2686.6,3.72215]
[1739743446888,6.8229777,2686.8,2686.7,3.72203]
[1739743447302,6.8229777,2686.8,2686.6,3.72217]
[1739743447503,6.8229777,2686.8,2686.6,3.72208]
[1739743451348,6.8229777,2686.8,2686.7,3.72203]
[1739743451566,6.1147,2686.8,2686.7,3.72203]
[1739743452556,6.1147,2686.8,2686.6,3.72208]
[1739743453959,5.34,2686.8,2686.7,3.72203]
[1739743454649,5.608,2687.1,2686.9,3.72163]
[1739743454809,5.608,2687.1,2686.7,3.7219]
[1739743455014,0.64304,2687.0,2686.7,3.7219]
[1739743455426,0.7948,2686.9,2686.6,3.72216]
[1739743455921,0.7948,2686.9,2686.4,3.72235]
[1739743455922,2.35162539,2686.9,2686.4,3.72235]
[1739743456152,2.35162539,2686.9,2686.5,3.7223]
[1739743456513,5.34,2686.8,2686.4,3.72235]
[1739743456718,0.7948,2686.6,2686.0,4.53361]
[1739743456945,0.7948,2686.6,2686.2,3.72272]
[1739743457751,0.7948,2686.6,2686.1,3.72286]
[1739743458258,0.7948,2686.6,2686.0,3.72291]
[1739743458427,0.7948,2686.6,2686.1,3.72285]
[1739743458632,0.31207879,2686.5,2686.1,3.72285]
[1739743458956,5.34,2686.4,2686.3,3.72259]
[1739743459287,5.34,2686.4,2686.2,3.72268]
[1739743460452,5.34,2686.4,2685.8,0.8107]
[1739743460453,0.7948,2686.3,2685.8,0.8107]
[1739743460656,0.7948,2686.3,2685.9,3.72314]
[1739743460960,1.43948788,2686.3,2686.1,3.72285]
[1739743463465,7.04748788,2686.3,2686.2,3.72273]
[1739743464163,7.04748788,2686.3,2685.8,1.56160687]
[1739743464354,7.04748788,2686.3,2686.2,3.72273]
[1739743465266,7.04748788,2686.3,2686.0,3.72289]
[1739743465767,7.04748788,2686.3,2686.1,3.72277]
[1739743466386,5.34,2686.3,2686.2,3.72273]
[1739743466675,5.608,2686.3,2686.2,3.72273]
[1739743467573,5.34,2686.3,2686.2,3.72273]
[1739743469582,0.268,2686.5,2686.3,3.7225]
[1739743470683,0.268,2686.5,2686.2,3.72259]
[1739743470858,0.5608,2686.4,2686.2,3.72259]
[1739743472883,0.5608,2686.4,2686.3,3.72259]
[1739743475282,5.9008,2686.4,2686.3,3.72259]
[1739743475584,0.7768,2686.3,2685.6,0.751]
[1739743475890,0.7768,2686.3,2685.8,3.7232]
[1739743476096,0.89106,2686.2,2685.9,3.72312]
[1739743476752,0.89106,2686.2,2686.0,3.72299]
[1739743476957,0.89106,2686.2,2685.9,3.72306]
[1739743477154,0.89106,2686.2,2686.0,3.72296]
[1739743477670,0.89106,2686.2,2686.0,3.72288]
[1739743477846,0.89106,2686.2,2685.9,3.72306]
[1739743478048,5.34,2686.4,2686.3,3.72259]
[1739743479309,5.34,2686.4,2686.2,3.72271]
[1739743479605,5.34,2686.4,2686.0,3.72293]
[1739743479751,5.34,2686.4,2685.9,0.751]
[1739743479752,0.7768,2686.3,2685.9,3.72314]
[1739743479952,0.7768,2686.3,2685.8,7.4464]
[1739743480173,0.83498,2686.2,2685.8,3.7232]
[1739743480349,0.83498,2686.2,2685.8,7.44641]
[1739743480652,0.83498,2686.2,2685.8,7.44639]
[1739743480850,0.83498,2686.2,2685.9,3.72313]
[1739743481254,5.34,2686.1,2685.9,3.72313]
[1739743481450,6.035178,2686.1,2685.9,3.72313]
[1739743481651,5.34,2686.1,2686.0,3.723]
[1739743487293,5.34,2686.3,2686.2,3.72273]
[1739743487988,0.7508,2686.2,2686.1,3.72285]
[1739743490505,5.34,2686.3,2686.2,3.72273]
[1739743495469,6.1419,2686.3,2686.2,3.72273]
[1739743495670,6.78289,2686.3,2686.2,3.72273]
[1739743497117,6.78289,2686.3,2686.0,3.72292]
[1739743497899,6.78289,2686.3,2685.9,3.72311]
[1739743498113,0.8019,2686.2,2685.9,3.72311]
[1739743498819,0.8019,2686.2,2685.8,3.72319]
[1739743499018,0.678289,2686.1,2685.8,7.44638]
[1739743499199,6.018289,2686.1,2685.8,7.44638]
[1739743499528,6.018289,2686.1,2685.9,3.72311]
[1739743500318,6.018289,2686.1,2685.5,0.8197]
[1739743500319,6.018289,2686.1,2686.0,3.723]
[1739743500641,5.34,2686.1,2686.0,3.723]
[1739743500919,5.34,2686.1,2685.8,3.21215417]
[1739743500920,0.268,2686.8,2686.6,7.44422]
[1739743501087,0.268,2686.8,2686.6,3.72205]
[1739743501496,0.8019,2687.2,2686.7,3.72203]
[1739743501688,0.268,2687.1,2686.9,3.72166]
[1739743501905,0.18401801,2687.5,2687.1,3.72148]
[1739743501906,1.0699,2687.4,2687.1,3.72148]
[1739743502223,0.8019,2687.4,2687.1,3.72148]
[1739743502387,1.0699,2687.4,2687.1,3.72148]
[1739743502592,0.8019,2687.4,2687.3,3.7212]
[1739743502850,2.15474935,2687.7,2687.6,3.72079]
[1739743503117,1.35284935,2687.7,2687.6,3.72079]
[1739743503618,0.98478255,2688.2,2687.8,3.72047]
[1739743503818,1.25278255,2688.2,2687.8,3.72047]
[1739743504018,1.25278255,2688.2,2687.6,0.8197]
[1739743504223,1.25278255,2688.2,2687.5,3.7209]
[1739743504461,0.27407525,2688.1,2687.4,3.72095]
[1739743504660,0.8019,2688.0,2687.4,3.72094]
[1739743505856,2.29001,2688.0,2687.2,4.541]
[1739743506189,0.8019,2687.6,2687.0,3.72155]
[1739743506332,0.8019,2687.6,2686.8,3.72186]
[1739743506333,0.8019,2687.4,2686.8,3.72178]
[1739743506533,0.268,2687.3,2687.0,3.72161]
[1739743506756,0.268,2687.3,2687.1,3.72144]
[1739743506971,0.268,2687.3,2687.0,3.72161]
[1739743507130,0.268,2687.3,2687.2,3.72134]
[1739743507773,5.34,2687.5,2687.4,3.72106]
[1739743509300,5.34,2687.5,2687.3,3.7212]
[1739743509578,5.9008,2687.5,2687.3,3.7212]
[1739743509998,5.9008,2687.5,2687.4,3.72106]
[1739743510193,5.34,2687.5,2687.4,3.72106]
[1739743510967,5.34,2687.6,2687.5,3.72093]
[1739743511367,5.34,2687.6,2687.4,3.72106]
[1739743511677,5.34,2687.6,2687.4,3.72096]
[1739743512264,5.34,2687.6,2687.4,7.44194]
[1739743512662,5.34,2687.6,2687.1,0.8197]
[1739743512663,5.874,2687.6,2687.1,0.8197]
[1739743512856,5.874,2687.6,2687.2,3.72123]
[1739743512857,0.7617,2687.5,2687.2,3.72123]
[1739743513280,0.7617,2687.5,2687.3,3.72118]
[1739743515005,5.874,2687.6,2687.5,3.72093]
[1739743515877,5.874,2687.6,2687.3,3.72117]
[1739743516477,5.874,2687.6,2687.3,7.44229]
[1739743516673,5.874,2687.6,2687.5,3.72093]
[1739743518390,5.874,2687.6,2687.2,3.72124]
[1739743518691,5.874,2687.6,2687.4,3.72104]
[1739743518895,5.874,2687.6,2687.5,3.72093]
[1739743521391,5.34,2687.6,2687.5,3.72093]
[1739743522555,5.34,2687.6,2687.3,4.50428]
[1739743522794,5.34,2687.6,2687.4,3.72106]
[1739743523176,5.34,2687.6,2687.3,4.50428]
[1739743523365,5.34,2687.6,2687.5,3.72093]
[1739743525092,5.95017,2687.6,2687.2,3.72127]
[1739743525463,5.95017,2687.6,2687.3,3.72119]
[1739743525663,5.95017,2687.6,2687.3,3.72112]
[1739743525881,5.95017,2687.6,2687.4,3.72098]
[1739743526089,5.95017,2687.6,2687.5,3.72093]
[1739743527397,5.34,2687.6,2687.5,3.72093]
[1739743528880,1.0581,2687.9,2687.7,3.72062]
[1739743529082,5.34,2687.8,2687.7,3.72062]
[1739743530301,5.34,2687.8,2687.5,3.72093]
[1739743531102,5.34,2687.8,2687.5,7.44178]
[1739743531270,5.97981,2687.8,2687.6,3.72071]
[1739743532203,5.97981,2687.8,2687.6,3.72076]
[1739743532572,0.18263089,2687.7,2687.6,3.72076]
[1739743532768,5.34,2687.8,2687.6,3.72076]
[1739743532981,0.18202376,2687.7,2687.4,3.72097]
[1739743533182,0.65801238,2687.7,2687.5,3.72091]
[1739743533388,0.17552082,2687.6,2687.5,3.72091]
[1739743533912,0.7901,2687.5,2687.2,3.72134]
[1739743534108,0.7901,2687.5,2687.3,3.72119]
[1739743534477,0.17552082,2687.4,2687.3,3.72119]
[1739743534679,5.51552082,2687.4,2687.3,3.72119]
[1739743538685,5.51552082,2687.4,2687.3,4.53799]
[1739743539120,5.34,2687.4,2687.3,4.53799]
[1739743539423,5.51546204,2687.4,2687.3,4.53799]
[1739743542427,5.51546204,2687.4,2687.3,5.363923]
[1739743543201,5.51546204,2687.4,2687.3,4.53799]
[1739743573379,5.51546204,2687.4,2687.3,3.72119]
[1739743597563,5.34,2687.4,2687.3,3.72119]
[1739743597763,5.50654305,2687.4,2687.3,3.72119]
[1739743641658,6.33854305,2687.4,2687.3,3.72119]
[1739743646547,5.47118948,2687.4,2687.3,3.72119]
[1739743653883,0.7535,2687.1,2686.4,0.8314]
[1739743654090,0.7535,2686.9,2686.6,3.72214]
[1739743654262,0.7535,2686.9,2686.6,7.44422]
[1739743654636,0.15000994,2686.8,2686.6,3.72208]
[1739743655300,0.15000994,2686.8,2686.7,3.72203]
[1739743655495,0.15000994,2686.8,2686.6,3.72208]
[1739743655698,0.15000994,2686.8,2686.6,7.44415]
[1739743656494,0.7535,2686.6,2686.0,0.8314]
[1739743656666,0.90328943,2686.5,2686.1,3.72274]
[1739743656866,0.7535,2686.3,2686.2,3.72261]
[1739743657257,0.90288271,2686.3,2686.2,3.72261]
[1739743659458,0.90288271,2686.3,2686.1,3.72274]
[1739743659663,0.90288271,2686.3,2686.2,3.72273]
[1739743659896,0.90288271,2686.3,2686.1,3.72274]
[1739743660103,0.90288271,2686.3,2686.1,7.44551]
[1739743660597,0.8139,2686.2,2685.9,3.72304]
[1739743661200,0.14938271,2686.1,2685.9,3.72304]
[1739743661713,6.11854643,2686.0,2685.9,3.72304]
[1739743661859,6.11854643,2686.0,2685.8,3.72326]
[1739743662063,6.26764478,2686.0,2685.8,3.72326]
[1739743662300,7.81859884,2686.0,2685.7,0.00505051]
[1739743662610,0.8139,2685.9,2685.7,0.00505051]
[1739743662762,5.30464643,2685.8,2685.7,0.00505051]
[1739743663303,5.45374478,2685.8,2685.7,3.72847051]
[1739743663704,5.45374478,2685.8,2685.7,0.00505051]
[1739743664001,6.16141379,2685.8,2685.7,0.00505051]
[1739743664364,6.97531379,2685.8,2685.7,0.00505051]
[1739743665001,6.97531379,2685.8,2685.7,3.72847051]
[1739743665607,6.26764478,2685.8,2685.7,0.00505051]
[1739743670004,6.26764478,2685.8,2685.7,3.72847051]
[1739743672107,6.53464478,2685.8,2685.7,3.72847051]
[1739743674842,6.53464478,2685.8,2685.7,0.00505051]
[1739743676498,6.53464478,2685.8,2685.7,3.72847051]
[1739743677194,6.53464478,2685.8,2685.7,0.00505051]
[1739743677430,7.62916308,2685.8,2685.7,0.00505051]
[1739743680229,6.53464478,2685.8,2685.7,0.00505051]
[1739743691128,5.72074478,2685.8,2685.7,0.00505051]
[1739743693253,9.91769349,2685.8,2685.7,0.00505051]
[1739743695088,13.7085022,2685.8,2685.7,0.00505051]
[1739743695300,16.89246349,2685.8,2685.7,0.00505051]
[1739743695453,18.87718979,2685.8,2685.7,0.00505051]
[1739743696236,19.42718979,2685.8,2685.7,0.00505051]
[1739743696443,19.52718979,2685.8,2685.7,0.00505051]
[1739743697942,20.27940398,2685.8,2685.7,0.00505051]
[1739743698271,20.27940398,2685.8,2685.7,5.1e-07]
[1739743699278,24.20040398,2685.8,2685.7,5.1e-07]
[1739743700836,1.48988,2684.8,2684.2,8.27383]
[1739743701173,1.55580871,2684.6,2684.2,4.54841]
[1739743701547,0.13753173,2684.5,2684.2,4.54841]
[1739743701749,1.55580871,2684.4,2684.0,3.72568]
[1739743701966,3.04592871,2684.4,2684.0,0.823]
[1739743702164,0.53814857,2684.3,2684.0,0.823]
[1739743702974,5.30464643,2684.2,2683.8,4.54897]
[1739743703160,0.13648683,2684.1,2683.8,4.54897]
[1739743704968,0.13648683,2684.1,2683.8,8.27494]
[1739743705162,0.13648683,2684.1,2683.8,4.54896]
[1739743705562,0.13648683,2684.1,2683.8,8.27493]
[1739743705790,0.13648683,2684.1,2683.8,4.54896]
[1739743705999,0.13648683,2684.1,2683.9,3.72589]
[1739743706491,0.13648683,2684.1,2683.8,8.2749]
[1739743707039,5.30464643,2684.0,2683.9,3.72591]
[1739743707666,5.44113326,2684.0,2683.9,3.72591]
[1739743712848,5.44113326,2684.0,2683.8,3.72604]
[1739743713056,0.267,2683.9,2683.8,7.45199]
[1739743713348,0.267,2683.9,2683.8,3.72595]
[1739743713594,0.40348683,2683.9,2683.8,3.72595]
[1739743718262,0.40348683,2683.9,2683.8,3.7192742]
[1739743719081,5.70813326,2683.9,2683.8,3.7192742]
[1739743721091,5.70813326,2683.9,2683.8,3.7192742]
[1739743723887,5.44113326,2683.9,2683.8,3.7192742]
[1739743724080,5.70813326,2683.9,2683.8,3.7192742]
[1739743725693,5.44113326,2683.9,2683.8,3.7192742]
[1739743758800,0.68060016,2683.9,2683.7,0.00505051]
[1739743758962,0.8047,2683.8,2683.7,0.00505051]
[1739743759168,0.93143933,2683.8,2683.7,0.00505051]
[1739743759370,4.28424933,2683.8,2683.7,0.00505051]
[1739743763022,3.16643933,2683.8,2683.7,0.00505051]
[1739743763530,3.35348131,2683.8,2683.7,0.00505051]
[1739743763823,4.10060644,2683.8,2683.7,0.00505051]
[1739743764422,2.13260644,2683.8,2683.7,0.00505051]
[1739743764614,2.13260644,2683.8,2683.7,3.73124051]
[1739743764817,0.58078131,2683.8,2683.7,3.73124051]
[1739743765121,0.58078131,2683.8,2683.7,0.00505051]
[1739743765689,2.46899131,2683.8,2683.7,0.00505051]
[1739743766599,7.77363774,2683.8,2683.7,0.00505051]
[1739743772671,10.00863774,2683.8,2683.7,0.00505051]
[1739743772872,11.27728909,2683.8,2683.7,0.00505051]
[1739743775393,7.65747909,2683.8,2683.7,0.00505051]
[1739743775570,7.92447909,2683.8,2683.7,0.00505051]
[1739743778629,6.88707909,2683.8,2683.7,0.00505051]
[1739743778836,5.88542774,2683.8,2683.7,3.73124051]
[1739743779040,5.88542774,2683.8,2683.7,4.52394051]
[1739743783992,5.43138576,2683.8,2683.7,4.52394051]
[1739743784346,5.43138576,2683.8,2683.7,0.00505051]
[1739743784678,6.18966134,2683.8,2683.7,0.00505051]
[1739743785880,5.43138576,2683.8,2683.7,0.00505051]
[1739743790308,5.43138576,2683.8,2683.7,3.73124051]
[1739743790684,5.43138576,2683.8,2683.7,0.00505051]
[1739743791907,5.62159564,2683.8,2683.7,0.00505051]
[1739743792805,5.62159564,2683.8,2683.7,3.73124051]
[1739743793712,5.62159564,2683.8,2683.7,0.00505051]
[1739743800430,5.62159564,2683.8,2683.7,3.73124051]
[1739743800614,5.62159564,2683.8,2683.7,0.00505051]
[1739743802829,5.62159564,2683.8,2683.7,3.73124051]
[1739743804695,5.62159564,2683.8,2683.7,0.00505051]
[1739743806112,7.0354552,2683.8,2683.7,0.00505051]
[1739743812028,7.7806652,2683.8,2683.7,0.00505051]
[1739743813275,10.0156652,2683.8,2683.7,0.00505051]
[1739743816497,13.0156652,2683.8,2683.7,0.00505051]
[1739743816642,13.5397652,2683.8,2683.7,0.00505051]
[1739743817475,4.32947,2683.2,2683.1,0.0574038]
[1739743817683,15.08482781,2683.2,2683.1,0.0574038]
[1739743820681,13.52472203,2683.2,2683.1,0.0574038]
[1739743822797,14.27195067,2683.2,2683.1,0.0574038]
[1739743831493,14.37195067,2683.2,2683.1,0.0574038]
[1739743832757,14.45302859,2683.2,2683.1,0.0574038]
[1739743835575,14.18602859,2683.2,2683.1,0.0574038]
[1739743835898,14.45302859,2683.2,2683.1,0.0574038]
[1739743837602,0.74557,2682.6,2682.1,0.005]
[1739743837769,5.30464643,2682.5,2682.1,0.005]
[1739743837969,0.267,2682.4,2682.1,0.005]
[1739743838280,0.19598337,2682.3,2682.1,0.005]
[1739743838798,0.19598337,2682.3,2682.1,3.73335]
[1739743839689,0.19598337,2682.3,2682.2,4.49848]
[1739743840219,0.19583806,2682.3,2682.2,0.7702]
[1739743840500,7.62490677,2682.5,2682.2,0.7702]
[1739743840901,0.18883892,2682.4,2682.2,0.7702]
[1739743841102,2.05284892,2682.4,2682.2,0.7702]
[1739743841309,0.18883892,2682.4,2682.2,0.7702]
[1739743842702,0.267,2682.3,2682.2,0.7702]
[1739743843108,0.45586856,2682.3,2682.2,0.7702]
[1739743852752,5.76051499,2682.3,2682.2,0.7702]
[1739743853650,5.49351499,2682.3,2682.2,4.49848]
[1739743853960,5.76051499,2682.3,2682.2,4.49848]
[1739743854254,5.76051499,2682.3,2682.2,0.7702]
[1739743860348,5.76051499,2682.3,2682.2,4.49848]
[1739743860723,5.76051499,2682.3,2682.2,0.7702]
[1739743862833,5.76051499,2682.3,2682.2,4.49848]
[1739743867973,6.13321499,2682.3,2682.2,4.49848]
[1739743868128,5.76051499,2682.3,2682.2,4.49848]
[1739743868496,5.49351499,2682.3,2682.2,4.49848]
[1739743868639,5.76051499,2682.3,2682.2,4.49848]
[1739743886528,5.76051499,2682.3,2682.2,3.72828]
[1739743891140,5.76051499,2682.3,2682.1,0.005]
[1739743891141,2.31871,2682.2,2682.1,0.005]
[1739743891429,9.84983352,2682.2,2682.1,0.005]
[1739743893437,9.84983352,2682.2,2682.1,1e-05]
[1739743893638,18.86983352,2682.2,2682.1,1e-05]
[1739743893946,21.55048422,2682.2,2682.1,1e-05]
[1739743894237,1.49159,2681.7,2681.6,0.00505051]
[1739743894535,9.66939892,2681.7,2681.6,0.00505051]
[1739743894743,3.0654,2681.5,2680.7,0.78615051]
[1739743894938,5.29232892,2681.2,2680.7,0.78615051]
[1739743895110,1.49198,2681.0,2680.7,0.78615051]
[1739743895511,0.18016631,2680.9,2680.4,7.6078334]
[1739743895735,0.18016631,2680.9,2680.4,3.8771334]
[1739743896040,0.18016631,2680.9,2680.4,7.6078334]
[1739743896242,0.18016631,2680.9,2680.6,3.73046]
[1739743896442,4.55736,2681.1,2680.4,3.8771034]
[1739743896645,0.18016631,2680.8,2680.6,3.73049]
[1739743896845,5.31848489,2681.1,2680.6,3.73049]
[1739743897139,0.18016631,2680.7,2680.6,3.73049]
[1739743897307,3.82656489,2681.1,2680.4,3.8771034]
[1739743897507,0.18016631,2680.7,2680.5,3.73064]
[1739743897750,3.82656489,2681.1,2680.5,0.8311]
[1739743897919,0.18016631,2680.6,2680.5,0.8311]
[1739743898119,3.82656489,2681.1,2680.6,3.73042]
[1739743898328,5.31849489,2681.1,2680.5,4.56163]
[1739743898929,3.82656489,2681.1,2680.5,8.2922]
[1739743899148,3.82656489,2681.1,2680.5,4.56163]
[1739743899354,3.82656489,2681.1,2680.7,3.73036]
[1739743900076,5.30464643,2681.0,2680.7,3.73036]
[1739743900378,5.30464643,2681.0,2680.6,3.73049]
[1739743901480,6.48589845,2681.0,2680.6,3.73049]
[1739743901681,0.18016631,2680.9,2680.6,3.73049]
[1739743902179,0.18016631,2680.9,2680.7,3.73025]
[1739743902958,0.18016631,2680.9,2680.5,4.56174]
[1739743903145,0.18016631,2680.9,2680.6,3.7305]
[1739743903559,1.35995563,2680.9,2680.6,3.7305]
[1739743905587,1.35995563,2680.9,2680.7,3.73036]
[1739743906083,5.30464643,2680.8,2680.7,3.73036]
[1739743906276,5.48413099,2680.8,2680.7,3.73036]
[1739743916104,5.75113099,2680.8,2680.7,4.49576]
[1739743918309,5.75113099,2680.8,2680.7,3.73036]
[1739743919804,5.48413099,2680.8,2680.7,3.73036]
[1739743920013,5.48413099,2680.8,2680.7,5.241844]
[1739743924006,0.17948456,2680.8,2680.7,5.241844]
[1739743924302,0.267,2681.1,2681.0,3.72995]
[1739743924693,0.43988697,2681.1,2681.0,3.72995]
[1739743926866,2.67788697,2681.1,2681.0,6.05695892]
[1739743927071,0.43988697,2681.1,2681.0,6.05695892]
[1739743927806,0.17288697,2681.1,2681.0,7.07295978]
[1739743928019,6.37e-06,2681.1,2681.0,7.0729563]
[1739743928318,5.30464643,2681.6,2681.5,4.49385]
[1739743928528,5.30464643,2681.6,2681.5,6.05625892]
[1739743928672,5.45956671,2681.6,2681.5,6.05625892]
[1739743928867,5.45956671,2681.6,2681.5,7.03482181]
[1739743929090,5.45956671,2681.6,2681.5,8.59723073]
[1739743929091,0.15492028,2681.6,2681.5,8.59723073]
[1739743929288,0.15492028,2681.6,2681.5,7.03482181]
[1739743929613,5.30464643,2682.0,2681.9,4.49329]
[1739743929930,5.30464643,2682.0,2681.9,6.05569892]
[1739743933537,5.45988293,2682.0,2681.9,6.05569892]
[1739743933740,5.30464643,2682.0,2681.9,6.05569892]
[1739743934076,5.45988293,2682.0,2681.9,6.05569892]
[1739743934572,5.45988293,2682.0,2681.9,7.03415081]
[1739743935348,6.5e-06,2682.0,2681.9,7.0714344]
[1739743935679,1.21e-06,2682.0,2681.9,10.03415081]
[1739743935963,2.28e-06,2682.0,2681.9,10.03415081]
[1739743936120,2.39956177,2683.1,2682.9,3.72731]
[1739743936121,5.30464643,2683.0,2682.9,3.72731]
[1739743936329,6.91246725,2683.0,2682.9,3.72731]
[1739743937728,6.91246725,2683.0,2682.5,3.72778]
[1739743938061,6.91246725,2683.0,2682.1,4.02625028]
[1739743938062,0.7902,2682.9,2682.6,3.72763]
[1739743938442,0.7902,2682.9,2682.7,3.72758]
[1739743938756,0.77026672,2682.8,2682.6,3.72763]
[1739743938946,0.77026672,2682.8,2682.7,3.72758]
[1739743939352,0.77026672,2682.8,2682.6,3.72763]
[1739743940262,0.77026672,2682.8,2682.7,3.72758]
[1739743941747,6.07491315,2682.8,2682.7,3.72758]
[1739743942454,5.30464643,2682.8,2682.7,3.72758]
[1739743943193,5.43444702,2682.8,2682.7,3.72758]
[1739743945251,5.43444702,2682.8,2682.7,6.94763028]
[1739743945443,5.43444702,2682.8,2682.7,7.71373028]
[1739743946959,5.30464643,2682.8,2682.7,7.71373028]
[1739743947144,5.30464643,2682.8,2682.7,8.93071401]
[1739743947473,0.12987462,2682.8,2682.7,8.93071401]
[1739743947640,3.44092643,2683.4,2683.3,3.72675]
[1739743948056,3.57097877,2683.4,2683.3,3.72675]
[1739743948479,3.57097877,2683.4,2682.8,0.7661]
[1739743948649,3.95477665,2683.4,2683.1,3.72689]
[1739743948844,3.95477665,2683.4,2683.2,3.72684]
[1739743949164,3.95477665,2683.4,2683.3,3.72675]
[1739743950559,3.95477665,2683.4,2683.1,3.72689]
[1739743950560,3.95477665,2683.4,2683.2,3.72687]
[1739743951392,3.95477665,2683.4,2683.3,3.72675]
[1739743952358,3.57097877,2683.4,2683.3,3.72675]
[1739743956079,3.57097877,2683.4,2683.2,3.72687]
[1739743956279,3.57097877,2683.4,2683.1,3.72696]
[1739743956634,3.57097877,2683.4,2683.1,3.72693]
[1739743957222,3.57097877,2683.4,2683.2,3.72682]
[1739743957421,3.57097877,2683.4,2683.1,3.72693]
[1739743957594,3.57097877,2683.4,2683.3,3.72675]
[1739743957926,3.57097877,2683.4,2683.2,7.45369]
[1739743959745,3.57097877,2683.4,2683.2,3.72682]
[1739743959955,3.57097877,2683.4,2683.3,3.72675]
[1739743960465,3.57097877,2683.4,2683.2,3.72682]
[1739743964446,3.57097877,2683.4,2683.2,7.45361]
[1739743964642,3.57097877,2683.4,2683.2,3.72679]
[1739743966506,3.57097877,2683.4,2683.1,3.72693]
[1739743966822,3.57097877,2683.4,2683.2,3.72685]
[1739743972663,3.57097877,2683.4,2683.2,3.72685]
[1739743975279,3.57097877,2683.4,2683.3,3.72675]
[1739743975573,3.57097877,2683.4,2683.1,3.72693]
[1739743975767,3.57097877,2683.4,2683.2,3.72683]
[1739743976376,3.57097877,2683.4,2683.3,3.72675]
[1739743977568,0.13005234,2683.4,2683.3,3.72675]
[1739743977940,0.267,2683.6,2683.4,3.72653]
[1739743980654,0.267,2683.6,2683.2,4.49415]
[1739743980976,0.267,2683.6,2683.2,4.49411]
[1739743981173,0.267,2683.6,2683.3,3.72668]
[1739743982282,0.267,2683.6,2683.4,3.7266]
[1739743983384,3.70792643,2683.6,2683.4,3.7266]
[1739743984183,3.70792643,2683.6,2683.3,3.72672]
[1739743990384,3.70792643,2683.6,2683.2,4.49411]
[1739743990569,3.70792643,2683.6,2683.3,3.72675]
[1739743991465,0.11855651,2683.5,2683.3,3.72675]
[1739743992792,0.11855651,2683.5,2683.4,3.72661]
[1739743995667,0.11855651,2683.5,2683.2,0.7673]
[1739743995992,0.11855651,2683.5,2683.1,3.72696]
[1739743995993,0.5012048,2683.5,2683.1,3.72696]
[1739743996356,2.7370848,2683.5,2683.1,3.72696]
[1739743997304,2.7370848,2683.5,2683.0,4.49329]
[1739743997608,0.8153,2682.9,2682.6,3.72762]
[1739743997781,0.8153,2682.9,2682.2,1.56096686]
[1739743997782,6.75962643,2682.9,2682.4,0.7662]
[1739743998099,0.11843806,2682.8,2682.2,0.7662]
[1739743998259,0.11843806,2682.8,2682.5,3.72773]
[1739743999870,0.11843806,2682.8,2682.5,7.45551]
[1739744000203,0.11843806,2682.8,2682.5,3.72773]
[1739744000903,0.11843806,2682.8,2682.6,3.72772]
[1739744001079,3.55936449,2682.8,2682.5,3.72773]
[1739744002102,3.55936449,2682.8,2682.6,3.72769]
[1739744004584,3.55936449,2682.8,2682.7,3.72758]
[1739744004783,3.55936449,2682.8,2682.6,3.72769]
[1739744005593,3.55936449,2682.8,2682.6,3.72763]
[1739744006837,3.55936449,2682.8,2682.6,7.45528]
[1739744007132,3.55936449,2682.8,2682.7,3.72758]
[1739744007333,3.55936449,2682.8,2682.7,4.58075357]
[1739744007618,3.55936449,2682.8,2682.7,4.54348]
[1739744007980,3.44092643,2682.8,2682.7,4.54348]
[1739744009116,3.44092643,2683.7,2683.3,3.72675]
[1739744009426,0.69081264,2683.6,2683.5,3.72647]
[1739744009637,3.81003285,2683.6,2683.5,3.72647]
[1739744010199,3.54303285,2683.6,2683.5,3.72647]
[1739744010398,3.54303285,2683.6,2683.5,4.54237]
[1739744012819,0.10210642,2683.6,2683.5,4.54237]
[1739744013019,0.267,2684.0,2683.5,1.642798]
[1739744013250,0.10241912,2683.9,2683.8,3.72598]
[1739744018448,0.05241912,2683.9,2683.8,3.72598]
[1739744018752,0.10063341,2683.9,2683.8,3.72598]
[1739744025443,3.44092643,2684.1,2683.8,3.72598]
[1739744025625,3.44092643,2684.1,2684.0,3.72578]
[1739744026243,3.54162434,2684.1,2684.0,3.72578]
[1739744029245,0.10069791,2684.1,2684.0,4.551478]